[Event "FIDE WYCC Girls U18 2023"]
[Site "Montesilvano"]
[Date "2023.11.23"]
[Round "10.29"]
[White "Graziani, Emma"]
[Black "Mohd Azman, Farihah Nur Aisyah"]
[Result "1/2-1/2"]
[ECO "B10"]
[WhiteElo "1783"]
[BlackElo "1379"]
[Annotator "NA RC"]
[PlyCount "121"]
[EventDate "2023.11.13"]
[EventType "swiss"]
[EventCountry "ITA"]
[SourceTitle "playchess.com"]
[Source "ChessBase"]
[SourceQuality "1"]
[TimeControl "40/5400+30:1800+30"]

1. e4 {[%emt 0:02:08]} c6 {[%emt 0:00:04]} 2. d3 {[%emt 0:00:23]} d5 {[%emt 0:00:09]} 3. Qe2 {[%emt 0:00:23]} e6 {[%emt 0:01:27]} 4. g3 {[%emt 0:00:23]} Nd7 {[%emt 0:02:22]} 5. Bg2 {[%emt 0:00:36]} dxe4 {[%emt 0:02:16]} 6. dxe4 {[%emt 0:00:13]} Ngf6 {[%emt 0:00:28]} 7. Nd2 {[%emt 0:00:53]} Be7 {[%emt 0:01:31]} 8. Ngf3 {[%emt 0:00:13]} h6 {[%emt 0:07:23]} 9. O-O {[%emt 0:00:36]} O-O {[%emt 0:00:18]} 10. b3 {[%emt 0:01:08]} b6 {[%emt 0:03:27]} 11. Bb2 {[%emt 0:00:17]} Bb7 {[%emt 0:08:25]} 12. Rad1 {[%emt 0:01:33]} Qc7 {[%emt 0:01:19]} 13. c4 {[%emt 0:02:44]} e5 {[%emt 0:02:44]} 14. Nh4 {[%emt 0:00:43]} Rfe8 {[%emt 0:02:22]} 15. Nf5 {[%emt 0:00:31]} Bf8 {[%emt 0:00:19]} 16. f4 {[%emt 0:04:07]} Rad8 {[%emt 0:02:21]} 17. fxe5 {[%emt 0:01:49]} Nxe5 {[%emt 0:00:11]} 18. Nxh6+ {[%emt 0:02:09]} gxh6 {[%emt 0:01:46]} 19. Rxf6 {[%emt 0:00:37]} Bg7 {[%emt 0:00:09]} 20. Rf5 {[%emt 0:01:40]} Bc8 {[%emt 0:02:23]} 21. Bxe5 {[%emt 0:02:17]} Bxe5 {[%emt 0:00:23]} 22. Rff1 {[%emt 0:01:21]} Bg7 {[%emt 0:13:23]} 23. Qf3 {[%emt 0:02:02]} Re7 {[%emt 0:04:17]} 24. Rfe1 {[%emt 0:02:35]} c5 {[%emt 0:07:30]} 25. Nf1 {[%emt 0:06:11]} Bb7 {[%emt 0:08:28]} 26. Rxd8+ {[%emt 0:00:24]} Qxd8 {[%emt 0:00:06]} 27. Qg4 {[%emt 0:02:15]} Bc8 {[%emt 0:16:30]} 28. Qf4 {[%emt 0:01:27]} Be6 {[%emt 0:07:06]} 29. Kh1 {[%emt 0:01:20]} b5 {[%emt 0:03:15]} 30. cxb5 {[%emt 0:06:10]} Qa5 {[%emt 0:00:18]} 31. Re2 {[%emt 0:05:01]} Qxb5 {[%emt 0:00:18]} 32. Rd2 {[%emt 0:00:29]} Re8 {[%emt 0:00:37]} 33. g4 {[%emt 0:01:02]} c4 {[%emt 0:01:15]} 34. bxc4 {[%emt 0:01:56]} Bxc4 {[%emt 0:00:09]} 35. Qf2 {[%emt 0:03:53]} Qa5 {[%emt 0:00:46]} 36. Ne3 {[%emt 0:01:11]} Be6 {[%emt 0:00:51]} 37. Nf5 {[%emt 0:01:06]} Bxf5 {[%emt 0:00:21]} 38. gxf5 {[%emt 0:00:29]} Rc8 {[%emt 0:01:32]} 39. Bf3 {[%emt 0:01:45]} Rc1+ {[%emt 0:00:43]} 40. Kg2 {[%emt 0:00:00]} Qc3 {[%emt 0:00:00]} 41. Re2 {[%emt 0:01:37]} a5 {[%emt 0:08:47]} 42. Kh3 {[%emt 0:05:45]} a4 {[%emt 0:08:46]} 43. Qg3 {[%emt 0:06:40]} Rf1 {[%emt 0:06:56]} 44. Bg2 {[%emt 0:08:39]} Qxg3+ {[%emt 0:01:32]} 45. hxg3 {[%emt 0:00:31]} Rc1 {[%emt 0:02:16]} 46. e5 {[%emt 0:05:31]} Bf8 {[%emt 0:04:41]} 47. Re4 {[%emt 0:02:19]} a3 {[%emt 0:00:32]} 48. Re2 {[%emt 0:00:42]} Rc5 {[%emt 0:00:38]} 49. g4 {[%emt 0:02:07]} Rb5 {[%emt 0:00:22]} 50. Re3 {[%emt 0:01:43]} Be7 {[%emt 0:01:04]} 51. Bc6 {[%emt 0:04:23]} Rc5 {[%emt 0:00:29]} 52. Ba4 {[%emt 0:00:40]} Rc1 {[%emt 0:00:18]} 53. Bb3 {[%emt 0:00:26]} Bc5 {[%emt 0:00:23]} 54. Rf3 {[%emt 0:03:23]} Kg7 {[%emt 0:00:54]} 55. Kg3 {[%emt 0:04:23]} Kf8 {[%emt 0:00:36]} 56. Kf4 {[%emt 0:01:07]} Re1 {[%emt 0:00:30]} 57. Rh3 {[%emt 0:04:20]} Ke7 {[%emt 0:00:33]} 58. e6 {[%emt 0:05:27]} f6 {[%emt 0:00:30]} 59. Rd3 {[%emt 0:01:00]} Bd6+ {[%emt 0:00:07]} 60. Kf3 {[%emt 0:01:58]} Rg1 {[%emt 0:00:13]} 61. Ke2 {[%emt 0:04:35]} 1/2-1/2

[Event "FIDE WYCC Girls U18 2023"]
[Site "Montesilvano"]
[Date "2023.11.23"]
[Round "10.30"]
[White "Saraci, Rinesa"]
[Black "Nielsen-Refs, Ingrid Elmer"]
[Result "1-0"]
[ECO "A45"]
[WhiteElo "1481"]
[BlackElo "1676"]
[Annotator "NA RC"]
[PlyCount "143"]
[EventDate "2023.11.13"]
[EventType "swiss"]
[EventCountry "ITA"]
[SourceTitle "playchess.com"]
[Source "ChessBase"]
[SourceQuality "1"]
[TimeControl "40/5400+30:1800+30"]

1. d4 {[%emt 0:01:44]} Nf6 {[%emt 0:00:13]} 2. Bf4 {[%emt 0:00:22]} d5 {[%emt 0:00:16]} 3. e3 {[%emt 0:00:26]} e6 {[%emt 0:00:06]} 4. c3 {[%emt 0:01:06]} Bd6 {[%emt 0:00:33]} 5. Bg3 {[%emt 0:00:32]} c5 {[%emt 0:01:49]} 6. Nd2 {[%emt 0:07:39]} O-O {[%emt 0:02:01]} 7. Bd3 {[%emt 0:01:40]} Qc7 {[%emt 0:08:09]} 8. Ngf3 {[%emt 0:03:16]} Nbd7 {[%emt 0:06:40]} 9. Bxd6 {[%emt 0:09:48]} Qxd6 {[%emt 0:00:36]} 10. O-O {[%emt 0:02:04]} b6 {[%emt 0:04:56]} 11. Re1 {[%emt 0:02:32]} Bb7 {[%emt 0:04:28]} 12. e4 {[%emt 0:11:42]} dxe4 {[%emt 0:04:20]} 13. Nxe4 {[%emt 0:02:46]} Nxe4 {[%emt 0:20:03]} 14. Bxe4 {[%emt 0:00:15]} Bxe4 {[%emt 0:00:07]} 15. Rxe4 {[%emt 0:00:23]} Nf6 {[%emt 0:02:36]} 16. Re2 {[%emt 0:04:09]} Rfd8 {[%emt 0:05:29]} 17. Qc2 {[%emt 0:02:54]} cxd4 {[%emt 0:03:51]} 18. Nxd4 {[%emt 0:01:57]} Nd5 {[%emt 0:01:58]} 19. Rd2 {[%emt 0:04:32]} Qf4 {[%emt 0:02:38]} 20. Rad1 {[%emt 0:03:48]} Re8 {[%emt 0:07:43]} 21. Nf3 {[%emt 0:04:53]} Rac8 {[%emt 0:05:17]} 22. Rd4 {[%emt 0:03:43]} Qc7 {[%emt 0:01:39]} 23. Ng5 {[%emt 0:04:28]} g6 {[%emt 0:08:33]} 24. Qe4 {[%emt 0:02:02]} Nf6 {[%emt 0:04:05]} 25. Qf3 {[%emt 0:00:57]} Qe5 {[%emt 0:01:48]} 26. h4 {[%emt 0:05:40]} Rc7 {[%emt 0:01:34]} 27. Rf4 {[%emt 0:05:11]} Kg7 {[%emt 0:00:42]} 28. Rd3 {[%emt 0:02:30]} Qe1+ {[%emt 0:01:21]} 29. Kh2 {[%emt 0:00:11]} h6 {[%emt 0:00:46]} 30. Re3 {[%emt 0:10:00]} Qb1 {[%emt 0:00:04]} 31. Nxe6+ {[%emt 0:00:30]} fxe6 {[%emt 0:00:33]} 32. Rxf6 {[%emt 0:00:11]} Qxa2 {[%emt 0:00:56]} 33. Re2 {[%emt 0:01:15]} Qc4 {[%emt 0:00:31]} 34. Rf4 {[%emt 0:01:07]} Qc6 {[%emt 0:00:27]} 35. Qe3 {[%emt 0:00:49]} Qd6 {[%emt 0:00:24]} 36. g3 {[%emt 0:00:31]} Rce7 {[%emt 0:00:37]} 37. Rd4 {[%emt 0:00:49]} Qc5 {[%emt 0:00:39]} 38. Qd3 {[%emt 0:00:28]} Qf5 {[%emt 0:00:27]} 39. Qe3 {[%emt 0:00:31]} Qc5 {[%emt 0:00:11]} 40. Qd3 {[%emt 0:00:00]} Qf5 {[%emt 0:00:00]} 41. Rde4 {[%emt 0:06:55]} g5 {[%emt 0:09:11]} 42. Qe3 {[%emt 0:02:10]} Kg6 {[%emt 0:04:31]} 43. Re5 {[%emt 0:04:53]} Qf6 {[%emt 0:02:58]} 44. Qe4+ {[%emt 0:02:20]} Kg7 {[%emt 0:01:18]} 45. Qg4 {[%emt 0:01:15]} Kf7 {[%emt 0:11:20]} 46. hxg5 {[%emt 0:02:47]} hxg5 {[%emt 0:00:42]} 47. Qxg5 {[%emt 0:04:48]} Rh8+ {[%emt 0:01:56]} 48. Kg2 {[%emt 0:00:26]} Qxg5 {[%emt 0:01:37]} 49. Rxg5 {[%emt 0:00:07]} Kf6 {[%emt 0:00:37]} 50. Rge5 {[%emt 0:00:27]} Rd8 {[%emt 0:01:11]} 51. f4 {[%emt 0:01:40]} Rde8 {[%emt 0:00:43]} 52. Kf3 {[%emt 0:00:43]} a6 {[%emt 0:00:46]} 53. g4 {[%emt 0:00:14]} a5 {[%emt 0:00:29]} 54. f5 {[%emt 0:00:17]} exf5 {[%emt 0:00:32]} 55. Rxf5+ {[%emt 0:01:04]} Kg6 {[%emt 0:00:13]} 56. Rxe7 {[%emt 0:01:40]} Rxe7 {[%emt 0:00:03]} 57. Rd5 {[%emt 0:00:37]} Rf7+ {[%emt 0:00:25]} 58. Ke4 {[%emt 0:00:44]} Rf2 {[%emt 0:00:55]} 59. Rd6+ {[%emt 0:00:17]} Kg5 {[%emt 0:00:36]} 60. Rxb6 {[%emt 0:00:31]} Kxg4 {[%emt 0:00:26]} 61. Kd4 {[%emt 0:00:42]} Rf4+ {[%emt 0:00:40]} 62. Kc5 {[%emt 0:00:33]} Rf2 {[%emt 0:00:40]} 63. Kc4 {[%emt 0:01:03]} Kf4 {[%emt 0:00:32]} 64. Rf6+ {[%emt 0:00:11]} Ke3 {[%emt 0:00:09]} 65. Rxf2 {[%emt 0:00:06]} Kxf2 {[%emt 0:00:10]} 66. Kb5 {[%emt 0:00:04]} Ke3 {[%emt 0:00:24]} 67. Kxa5 {[%emt 0:00:20]} Ke4 {[%emt 0:00:24]} 68. b4 {[%emt 0:00:49]} Kd5 {[%emt 0:00:04]} 69. Kb6 {[%emt 0:00:14]} Kd6 {[%emt 0:00:25]} 70. c4 {[%emt 0:00:13]} Kd7 {[%emt 0:00:12]} 71. Kb7 {[%emt 0:00:08]} Kd6 {[%emt 0:00:10]} 72. c5+ {[%emt 0:00:09]} 1-0

[Event "FIDE WYCC Girls U18 2023"]
[Site "Montesilvano"]
[Date "2023.11.23"]
[Round "10.31"]
[White "Egger, Stefanie"]
[Black "Latifah, Darmaki"]
[Result "*"]
[WhiteElo "1784"]
[BlackElo "1367"]
[Annotator "NA RC"]
[PlyCount "52"]
[EventDate "2023.11.13"]
[EventType "swiss"]
[EventCountry "ITA"]
[SourceTitle "playchess.com"]
[Source "ChessBase"]
[SourceQuality "1"]
[TimeControl "40/5400+30:1800+30"]

1. d4 {[%emt 0:00:04]} d5 {[%emt 0:00:09]} 2. c4 {[%emt 0:00:03]} e6 {[%emt 0:00:16]} 3. Nc3 {[%emt 0:00:04]} c6 {[%emt 0:00:14]} 4. e4 {[%emt 0:00:06]} dxe4 {[%emt 0:00:15]} 5. Nxe4 {[%emt 0:00:04]} Bb4+ {[%emt 0:00:07]} 6. Nc3 {[%emt 0:00:03]} Nf6 {[%emt 0:00:43]} 7. Nf3 {[%emt 0:00:07]} Bxc3+ {[%emt 0:03:50]} 8. bxc3 {[%emt 0:00:08]} O-O {[%emt 0:00:57]} 9. Be2 {[%emt 0:01:30]} Nbd7 {[%emt 0:04:20]} 10. O-O {[%emt 0:00:20]} Qa5 {[%emt 0:01:21]} 11. a4 {[%emt 0:13:01]} Ne4 {[%emt 0:06:45]} 12. Qc2 {[%emt 0:12:50]} Nef6 {[%emt 0:35:31]} 13. Bf4 {[%emt 0:03:40]} c5 {[%emt 0:04:00]} 14. Rfb1 {[%emt 0:12:07]} b6 {[%emt 0:04:36]} 15. Rb5 {[%emt 0:02:43]} Qa6 {[%emt 0:00:33]} 16. a5 {[%emt 0:00:34]} Bb7 {[%emt 0:03:46]} 17. Qb1 {[%emt 0:01:34]} Bc6 {[%emt 0:07:19]} 18. axb6 {[%emt 0:00:38]} Qb7 {[%emt 0:02:09]} 19. Ne5 {[%emt 0:19:24]} Nxe5 {[%emt 0:06:31]} 20. Bxe5 {[%emt 0:00:22]} Bxb5 {[%emt 0:13:10]} 21. Qxb5 {[%emt 0:00:17]} Qxb6 {[%emt 0:00:36]} 22. dxc5 {[%emt 0:03:37]} Qxb5 {[%emt 0:03:06]} 23. cxb5 {[%emt 0:00:06]} Nd7 {[%emt 0:01:07]} 24. Bd6 {[%emt 0:01:09]} Rfd8 {[%emt 0:00:32]} 25. Bf3 {[%emt 0:03:44]} Nxc5 {[%emt 0:00:19]} 26. Bxc5 {[%emt 0:00:25]} Rac8 {[%emt 0:00:34]} *

[Event "FIDE WYCC Girls U18 2023"]
[Site "Montesilvano"]
[Date "2023.11.23"]
[Round "10.32"]
[White "Lunar Villaman, Sofia"]
[Black "Ajradinoska, Indzi"]
[Result "0-1"]
[ECO "D02"]
[WhiteElo "1305"]
[BlackElo "1594"]
[Annotator "NA RC"]
[PlyCount "80"]
[EventDate "2023.11.13"]
[EventType "swiss"]
[EventCountry "ITA"]
[SourceTitle "playchess.com"]
[Source "ChessBase"]
[SourceQuality "1"]
[TimeControl "40/5400+30:1800+30"]

1. d4 {[%emt 0:00:03]} d5 {[%emt 0:02:32]} 2. Bf4 {[%emt 0:00:07]} Nf6 {[%emt 0:00:15]} 3. Nf3 {[%emt 0:00:06]} e6 {[%emt 0:00:03]} 4. e3 {[%emt 0:00:04]} Bd6 {[%emt 0:00:04]} 5. Bg3 {[%emt 0:00:08]} O-O {[%emt 0:00:11]} 6. Nbd2 {[%emt 0:00:08]} c5 {[%emt 0:00:27]} 7. c3 {[%emt 0:00:06]} Qc7 {[%emt 0:00:04]} 8. Bd3 {[%emt 0:02:14]} Nbd7 {[%emt 0:00:42]} 9. O-O {[%emt 0:07:09]} Bxg3 {[%emt 0:01:18]} 10. hxg3 {[%emt 0:00:06]} e5 {[%emt 0:04:28]} 11. dxe5 {[%emt 0:12:30]} Nxe5 {[%emt 0:00:36]} 12. Qc2 {[%emt 0:14:19]} Bg4 {[%emt 0:03:04]} 13. Be2 {[%emt 0:02:57]} Rac8 {[%emt 0:01:17]} 14. Bd1 {[%emt 0:09:03]} Rfd8 {[%emt 0:02:22]} 15. Qa4 {[%emt 0:06:32]} Nc6 {[%emt 0:07:23]} 16. Qf4 {[%emt 0:07:41]} Qb6 {[%emt 0:03:42]} 17. Rb1 {[%emt 0:04:05]} Ne7 {[%emt 0:04:58]} 18. Ne5 {[%emt 0:03:41]} Bf5 {[%emt 0:02:35]} 19. e4 {[%emt 0:06:16]} dxe4 {[%emt 0:00:44]} 20. Bb3 {[%emt 0:12:12]} Bg6 {[%emt 0:03:54]} 21. Rbe1 {[%emt 0:08:08]} Ned5 {[%emt 0:04:24]} 22. Ndc4 {[%emt 0:02:52]} Qe6 {[%emt 0:03:22]} 23. Qc1 {[%emt 0:00:28]} b5 {[%emt 0:00:57]} 24. Nxg6 {[%emt 0:00:54]} bxc4 {[%emt 0:00:42]} 25. Bxc4 {[%emt 0:00:33]} hxg6 {[%emt 0:00:02]} 26. Rd1 {[%emt 0:00:20]} Qf5 {[%emt 0:00:30]} 27. Qc2 {[%emt 0:00:41]} Qh5 {[%emt 0:02:22]} 28. Bxd5 {[%emt 0:00:30]} Rxd5 {[%emt 0:00:39]} 29. Rxd5 {[%emt 0:00:14]} Qxd5 {[%emt 0:00:19]} 30. c4 {[%emt 0:00:28]} Qh5 {[%emt 0:00:50]} 31. Re1 {[%emt 0:00:30]} Rd8 {[%emt 0:01:22]} 32. b3 {[%emt 0:00:50]} Qg5 {[%emt 0:03:33]} 33. Qc1 {[%emt 0:00:30]} Qxc1 {[%emt 0:01:34]} 34. Rxc1 {[%emt 0:00:09]} Rd2 {[%emt 0:00:03]} 35. Ra1 {[%emt 0:00:35]} Nd7 {[%emt 0:00:05]} 36. Kf1 {[%emt 0:00:24]} Ne5 {[%emt 0:00:07]} 37. Ke1 {[%emt 0:00:36]} Rb2 {[%emt 0:00:31]} 38. Rd1 {[%emt 0:00:48]} Nd3+ {[%emt 0:00:07]} 39. Kf1 {[%emt 0:00:29]} Rxf2+ {[%emt 0:00:08]} 40. Kg1 {[%emt 0:00:00]} Rxa2 {[%emt 0:00:00]} 0-1

[Event "FIDE WYCC Girls U18 2023"]
[Site "Montesilvano"]
[Date "2023.11.23"]
[Round "10.33"]
[White "Darweeche, Roaa"]
[Black "Chavez Echeverria, Ana Karen"]
[Result "1/2-1/2"]
[ECO "A06"]
[WhiteElo "1406"]
[BlackElo "1230"]
[Annotator "NA RC"]
[PlyCount "64"]
[EventDate "2023.11.13"]
[EventType "swiss"]
[EventCountry "ITA"]
[SourceTitle "playchess.com"]
[Source "ChessBase"]
[SourceQuality "1"]
[TimeControl "40/5400+30:1800+30"]

1. Nf3 {[%emt 0:00:05]} d5 {[%emt 0:01:07]} 2. d4 {[%emt 0:00:52]} Bf5 {[%emt 0:00:33]} 3. Bf4 {[%emt 0:00:41]} e6 {[%emt 0:00:42]} 4. c4 {[%emt 0:01:15]} c5 {[%emt 0:02:08]} 5. e3 {[%emt 0:04:48]} Nc6 {[%emt 0:01:15]} 6. cxd5 {[%emt 0:00:51]} exd5 {[%emt 0:01:40]} 7. Bd3 {[%emt 0:00:56]} Bxd3 {[%emt 0:00:30]} 8. Qxd3 {[%emt 0:00:06]} Nf6 {[%emt 0:04:16]} 9. O-O {[%emt 0:01:03]} Bd6 {[%emt 0:02:32]} 10. Bg5 {[%emt 0:04:03]} O-O {[%emt 0:00:56]} 11. dxc5 {[%emt 0:00:44]} Bxc5 {[%emt 0:01:24]} 12. a3 {[%emt 0:03:21]} Be7 {[%emt 0:01:42]} 13. Nc3 {[%emt 0:00:38]} Ne4 {[%emt 0:08:38]} 14. Bxe7 {[%emt 0:00:59]} Nxe7 {[%emt 0:00:12]} 15. Nxe4 {[%emt 0:00:11]} dxe4 {[%emt 0:00:10]} 16. Qxe4 {[%emt 0:00:06]} Nc6 {[%emt 0:01:29]} 17. Rfd1 {[%emt 0:00:58]} Qf6 {[%emt 0:08:14]} 18. Qc2 {[%emt 0:02:05]} Rac8 {[%emt 0:03:13]} 19. Rac1 {[%emt 0:03:54]} Rc7 {[%emt 0:04:00]} 20. b4 {[%emt 0:10:13]} Re7 {[%emt 0:06:52]} 21. Nd4 {[%emt 0:06:13]} Ne5 {[%emt 0:05:25]} 22. h3 {[%emt 0:00:42]} a6 {[%emt 0:07:07]} 23. Nf5 {[%emt 0:05:34]} Re6 {[%emt 0:03:08]} 24. Nd4 {[%emt 0:01:59]} Re7 {[%emt 0:03:48]} 25. Nb3 {[%emt 0:10:30]} b6 {[%emt 0:03:23]} 26. Nd4 {[%emt 0:01:13]} h6 {[%emt 0:03:16]} 27. a4 {[%emt 0:08:48]} Rfe8 {[%emt 0:04:17]} 28. b5 {[%emt 0:02:23]} a5 {[%emt 0:01:34]} 29. Nf5 {[%emt 0:11:50]} Re6 {[%emt 0:01:07]} 30. Nd4 {[%emt 0:01:13]} R6e7 {[%emt 0:00:49]} 31. Nf5 {[%emt 0:01:13]} Re6 {[%emt 0:00:02]} 32. Nd4 {[%emt 0:00:35]} R6e7 1/2-1/2

[Event "FIDE WYCC Girls U18 2023"]
[Site "Montesilvano"]
[Date "2023.11.23"]
[Round "10.34"]
[White "Changkachith, Alyssa"]
[Black "Ivanovic, Tara"]
[Result "1-0"]
[ECO "C44"]
[WhiteElo "1147"]
[BlackElo "1575"]
[Annotator "NA RC"]
[PlyCount "49"]
[EventDate "2023.11.13"]
[EventType "swiss"]
[EventCountry "ITA"]
[SourceTitle "playchess.com"]
[Source "ChessBase"]
[SourceQuality "1"]
[TimeControl "40/5400+30:1800+30"]

1. e4 {[%emt 0:03:20]} e5 {[%emt 0:00:06]} 2. Nf3 {[%emt 0:00:57]} Nc6 {[%emt 0:00:06]} 3. d4 {[%emt 0:00:21]} exd4 {[%emt 0:00:11]} 4. Bc4 {[%emt 0:00:29]} Bc5 {[%emt 0:00:27]} 5. Ng5 {[%emt 0:01:06]} Ne5 {[%emt 0:19:47]} 6. Nxf7 {[%emt 0:00:57]} Nxf7 {[%emt 0:00:31]} 7. Bxf7+ {[%emt 0:00:03]} Kxf7 {[%emt 0:00:14]} 8. Qh5+ {[%emt 0:00:14]} g6 {[%emt 0:02:09]} 9. Qd5+ {[%emt 0:00:24]} Kg7 {[%emt 0:03:04]} 10. Qxc5 {[%emt 0:00:16]} Qe7 {[%emt 0:02:22]} 11. Qxd4+ {[%emt 0:01:19]} Nf6 {[%emt 0:02:33]} 12. Nc3 {[%emt 0:02:44]} Re8 {[%emt 0:03:23]} 13. O-O {[%emt 0:04:09]} Qe5 {[%emt 0:09:46]} 14. Be3 {[%emt 0:11:42]} Kf7 {[%emt 0:09:28]} 15. Qc4+ {[%emt 0:03:30]} Qe6 {[%emt 0:06:08]} 16. Qxc7 {[%emt 0:11:13]} Nxe4 {[%emt 0:01:30]} 17. Qf4+ {[%emt 0:01:13]} Kg8 {[%emt 0:02:07]} 18. Nb5 {[%emt 0:06:54]} Qc6 {[%emt 0:02:52]} 19. Nxa7 {[%emt 0:06:03]} Qa6 {[%emt 0:11:08]} 20. Rfe1 {[%emt 0:13:32]} d5 {[%emt 0:03:30]} 21. Bd4 {[%emt 0:08:56]} Re7 {[%emt 0:06:39]} 22. f3 {[%emt 0:01:22]} Rxa7 {[%emt 0:01:54]} 23. fxe4 {[%emt 0:01:54]} b6 {[%emt 0:02:19]} 24. Rf1 {[%emt 0:00:56]} Rf7 {[%emt 0:01:31]} 25. Qe5 {[%emt 0:00:37]} 1-0

[Event "FIDE WYCC Girls U18 2023"]
[Site "Montesilvano"]
[Date "2023.11.23"]
[Round "10.35"]
[White "Stagno, Milena"]
[Black "Gonzalez Romo, Greshya Jocelyn"]
[Result "1/2-1/2"]
[ECO "B22"]
[WhiteElo "1444"]
[BlackElo "1494"]
[Annotator "NA"]
[PlyCount "48"]
[EventDate "2023.11.13"]
[EventType "swiss"]
[EventCountry "ITA"]
[SourceTitle "playchess.com"]
[Source "ChessBase"]
[SourceQuality "1"]
[TimeControl "40/5400+30:1800+30"]

1. e4 {[%emt 0:00:03]} c5 {[%emt 0:00:22]} 2. c3 {[%emt 0:00:04]} d5 {[%emt 0:00:08]} 3. exd5 {[%emt 0:00:09]} Qxd5 {[%emt 0:00:06]} 4. d4 {[%emt 0:00:07]} e6 {[%emt 0:00:24]} 5. Nf3 {[%emt 0:02:11]} Nf6 {[%emt 0:00:43]} 6. Be2 {[%emt 0:03:32]} Be7 {[%emt 0:01:44]} 7. h3 {[%emt 0:03:58]} Nc6 {[%emt 0:02:37]} 8. Be3 {[%emt 0:02:12]} cxd4 {[%emt 0:00:33]} 9. cxd4 {[%emt 0:04:27]} Bb4+ {[%emt 0:02:40]} 10. Nc3 {[%emt 0:00:59]} Qa5 {[%emt 0:02:48]} 11. Bd2 {[%emt 0:03:50]} Qd8 {[%emt 0:03:43]} 12. a3 {[%emt 0:05:59]} Ba5 {[%emt 0:03:47]} 13. Bg5 {[%emt 0:07:35]} h6 {[%emt 0:06:59]} 14. Be3 {[%emt 0:05:01]} Nd5 {[%emt 0:05:05]} 15. Bd2 {[%emt 0:00:46]} O-O {[%emt 0:02:23]} 16. Bc4 {[%emt 0:08:16]} Nxc3 {[%emt 0:07:11]} 17. bxc3 {[%emt 0:03:57]} Ne7 {[%emt 0:08:16]} 18. Bd3 {[%emt 0:07:36]} Nd5 {[%emt 0:05:15]} 19. Qc2 {[%emt 0:07:48]} Qc7 {[%emt 0:06:07]} 20. Rc1 {[%emt 0:02:07]} Nf4 {[%emt 0:03:54]} 21. Bf1 {[%emt 0:06:01]} Ng6 {[%emt 0:03:22]} 22. Bd3 {[%emt 0:01:00]} Nf4 {[%emt 0:00:13]} 23. Bf1 {[%emt 0:00:08]} Ng6 {[%emt 0:00:09]} 24. Bd3 {[%emt 0:00:25]} Nf4 {[%emt 0:00:06]} 1/2-1/2

[Event "FIDE WYCC Girls U18 2023"]
[Site "Montesilvano"]
[Date "2023.11.24"]
[Round "11.1"]
[White "Wu, Rochelle"]
[Black "Nguyen Hong Nhung"]
[Result "1-0"]
[ECO "A88"]
[WhiteElo "2228"]
[BlackElo "1975"]
[Annotator "RC"]
[PlyCount "89"]
[EventDate "2023.11.13"]
[EventType "swiss"]
[EventCountry "ITA"]
[SourceTitle "playchess.com"]
[Source "ChessBase"]
[SourceQuality "1"]
[TimeControl "40/5400+30:1800+30"]

1. d4 {[%emt 0:00:03]} f5 {[%emt 0:00:10]} 2. c4 {[%emt 0:00:07]} Nf6 {[%emt 0:00:07]} 3. g3 {[%emt 0:00:04]} g6 {[%emt 0:00:06]} 4. Bg2 {[%emt 0:00:05]} Bg7 {[%emt 0:00:05]} 5. Nf3 {[%emt 0:00:05]} O-O {[%emt 0:00:07]} 6. Nc3 {[%emt 0:00:05]} d6 {[%emt 0:00:07]} 7. O-O {[%emt 0:00:47]} c6 {[%emt 0:00:10]} 8. d5 {[%emt 0:00:40]} e5 {[%emt 0:00:09]} 9. dxe6 {[%emt 0:00:44]} Bxe6 {[%emt 0:00:15]} 10. b3 {[%emt 0:01:48]} Na6 {[%emt 0:01:22]} 11. Rb1 {[%emt 0:08:19]} Qe7 {[%emt 0:04:28]} 12. Re1 {[%emt 0:04:18]} Nc5 {[%emt 0:13:03]} 13. Ng5 {[%emt 0:18:42]} Ng4 {[%emt 0:07:31]} 14. Qc2 {[%emt 0:04:32]} Bd4 {[%emt 0:23:27]} 15. Nd1 {[%emt 0:22:50]} Bf6 {[%emt 0:21:37]} 16. Nxe6 {[%emt 0:00:49]} Nxe6 {[%emt 0:00:37]} 17. h3 {[%emt 0:02:38]} Ne5 {[%emt 0:02:46]} 18. f4 {[%emt 0:01:27]} Nd7 {[%emt 0:04:26]} 19. Nf2 {[%emt 0:04:32]} Qg7 {[%emt 0:07:40]} 20. Ba3 {[%emt 0:04:37]} Ndc5 {[%emt 0:03:52]} 21. b4 {[%emt 0:00:54]} Nd4 {[%emt 0:01:09]} 22. Qd1 {[%emt 0:00:22]} Ne4 {[%emt 0:00:23]} 23. Bxe4 {[%emt 0:06:03]} fxe4 {[%emt 0:00:05]} 24. Nxe4 {[%emt 0:00:16]} Nf5 {[%emt 0:03:22]} 25. Nxf6+ {[%emt 0:03:31]} Qxf6 {[%emt 0:00:42]} 26. Qd3 {[%emt 0:04:12]} Rae8 {[%emt 0:01:21]} 27. Bb2 {[%emt 0:00:14]} Qe6 {[%emt 0:00:43]} 28. e4 {[%emt 0:00:17]} Ng7 {[%emt 0:00:25]} 29. Kg2 {[%emt 0:02:03]} Nh5 {[%emt 0:00:54]} 30. Qc3 {[%emt 0:01:07]} Nf6 {[%emt 0:00:51]} 31. g4 {[%emt 0:03:00]} Re7 {[%emt 0:01:44]} 32. e5 {[%emt 0:02:42]} dxe5 {[%emt 0:00:27]} 33. Rxe5 {[%emt 0:00:04]} Qd6 {[%emt 0:01:31]} 34. Rxe7 {[%emt 0:01:06]} Qxe7 {[%emt 0:00:04]} 35. Re1 {[%emt 0:00:19]} Qd6 {[%emt 0:00:55]} 36. g5 {[%emt 0:00:12]} Qxf4 {[%emt 0:01:12]} 37. gxf6 {[%emt 0:00:05]} Qg5+ {[%emt 0:00:17]} 38. Kh1 {[%emt 0:00:04]} Qh6 {[%emt 0:00:26]} 39. Re7 {[%emt 0:01:38]} Rd8 {[%emt 0:00:44]} 40. f7+ {[%emt 0:00:00]} Kf8 {[%emt 0:00:00]} 41. Re1 {[%emt 0:01:06]} g5 {[%emt 0:01:22]} 42. Qh8+ {[%emt 0:01:06]} Kxf7 {[%emt 0:00:06]} 43. Rf1+ {[%emt 0:00:02]} Ke7 {[%emt 0:00:31]} 44. Qf6+ {[%emt 0:00:06]} Qxf6 {[%emt 0:00:05]} 45. Bxf6+ {[%emt 0:00:03]} 1-0